bitfinex-derivatives/quotes_BTCF0:USTF0_20250411
["timestamp","ask_amount","ask_price","bid_price","bid_amount"]
[1744388639512,0.5881836,82228.0,82227.0,0.13791953]
[1744388641313,0.6385836,82228.0,82227.0,0.13791953]
[1744388643517,0.0608482,82220.0,82217.0,0.1825466]
[1744388643719,0.543349,82218.0,82217.0,0.2433963]
[1744388644210,0.645749,82218.0,82217.0,0.2434363]
[1744388644416,0.645749,82218.0,82217.0,0.25946404]
[1744388646316,0.645749,82218.0,82217.0,0.13776714]
[1744388647508,0.645749,82218.0,82217.0,0.01606774]
[1744388647916,0.645749,82218.0,82217.0,0.01602774]
[1744388648219,0.1217102,82210.0,82205.0,5.4e-05]
[1744388648423,0.3608,82210.0,82209.0,0.13603412]
[1744388648723,0.3608,82210.0,82209.0,0.12679972]
[1744388648912,0.3608,82210.0,82209.0,0.23089972]
[1744388649223,0.4825102,82210.0,82209.0,0.23089972]
[1744388649718,0.4825102,82210.0,82209.0,0.25650058]
[1744388649912,0.3608,82210.0,82209.0,0.25650058]
[1744388652020,0.3608,82210.0,82209.0,0.25658552]
[1744388652917,0.4096,82210.0,82209.0,0.25658552]
[1744388653119,0.5313102,82210.0,82209.0,0.25658552]
[1744388653718,0.5313102,82210.0,82209.0,0.25654669]
[1744388653922,0.5313102,82210.0,82209.0,0.25650669]
[1744388654121,0.5313102,82210.0,82209.0,0.25654669]
[1744388654418,0.5828102,82210.0,82209.0,0.25654669]
[1744388655119,0.5828102,82210.0,82209.0,0.03073499]
[1744388655314,0.5828102,82210.0,82209.0,0.0214195]
[1744388655510,0.5828102,82210.0,82209.0,0.0213795]
[1744388656319,0.5828102,82210.0,82209.0,0.0214195]
[1744388656519,0.5828102,82210.0,82209.0,0.1431312]
[1744388656920,0.5828102,82210.0,82209.0,0.0214195]
[1744388657122,0.5828102,82210.0,82209.0,0.00508802]
[1744388657328,0.5828102,82210.0,82209.0,0.021543]
[1744388657519,0.5828102,82210.0,82209.0,0.021503]
[1744388657716,0.5828102,82210.0,82209.0,0.021543]
[1744388657911,0.5828102,82210.0,82209.0,0.00504802]
[1744388658116,0.5828102,82210.0,82209.0,0.00508802]
[1744388659019,0.1217191,82204.0,82203.0,0.1217194]
[1744388659221,0.1217191,82204.0,82203.0,0.13825962]
[1744388659419,0.2707191,82204.0,82203.0,0.13825962]
[1744388660829,0.2707191,82204.0,82203.0,0.13814519]
[1744388661321,0.3608,82205.0,82204.0,0.1217191]
[1744388661528,0.3608,82205.0,82204.0,0.18954241]
[1744388661721,0.3608,82205.0,82204.0,0.24044241]
[1744388662928,0.4825176,82205.0,82204.0,0.11872331]
[1744388663127,0.4825176,82205.0,82204.0,0.11876331]
[1744388663331,0.5812176,82205.0,82204.0,0.24048241]
[1744388664029,0.5812176,82205.0,82204.0,0.24044241]
[1744388664231,0.5812176,82205.0,82204.0,0.24048241]
[1744388664822,0.5812176,82205.0,82204.0,0.01646331]
[1744388665032,0.5812176,82205.0,82204.0,0.01642331]
[1744388665727,0.5812176,82205.0,82204.0,0.01646331]
[1744388665932,0.5812176,82205.0,82204.0,0.01642331]
[1744388666140,0.0608618,82201.0,82196.0,0.0519]
[1744388666431,0.1217309,82196.0,82195.0,0.0001824]
[1744388666631,0.1217309,82196.0,82195.0,0.01662199]
[1744388666828,0.2235309,82196.0,82195.0,0.0001824]
[1744388667235,0.2235309,82196.0,82195.0,0.0002224]
[1744388667431,0.2235309,82196.0,82195.0,0.0001824]
[1744388667732,0.2235309,82196.0,82195.0,0.0002224]
[1744388671933,0.2235309,82196.0,82195.0,0.1219548]
[1744388673737,0.2235309,82196.0,82195.0,0.1717548]
[1744388674330,0.1703309,82196.0,82195.0,0.2229548]
[1744388674532,0.0486,82196.0,82195.0,0.2229548]
[1744388675330,0.0989,82196.0,82195.0,0.2229548]
[1744388676330,0.2206309,82196.0,82195.0,0.2229548]
[1744388679727,0.2206309,82196.0,82195.0,0.0500224]
[1744388679927,0.2206309,82196.0,82195.0,0.0001824]
[1744388680135,0.2206309,82196.0,82195.0,0.0002224]
[1744388683536,0.2206309,82196.0,82195.0,0.0001824]
[1744388683750,0.2206309,82196.0,82195.0,0.0002224]
[1744388688746,0.2206309,82196.0,82195.0,1e-07]
[1744388688944,0.1217487,82184.0,82183.0,0.00486716]
[1744388689143,0.4825487,82184.0,82183.0,0.00486716]
[1744388689340,0.6396487,82184.0,82183.0,0.00486716]
[1744388689537,0.6396487,82184.0,82183.0,0.05856716]
[1744388689942,0.6396487,82184.0,82183.0,0.10896716]
[1744388692550,0.6396487,82184.0,82183.0,1e-08]
[1744388693249,0.6396487,82184.0,82183.0,4.001e-05]
[1744388702139,0.1217561,82179.0,82178.0,0.0502]
[1744388702344,0.4825561,82179.0,82178.0,0.0502]
[1744388702547,0.5866561,82179.0,82178.0,0.0502]
[1744388702747,0.5338561,82179.0,82178.0,0.05024]
[1744388703047,0.4825561,82179.0,82178.0,0.1719976]
[1744388703451,0.4825561,82179.0,82178.0,0.2234976]
[1744388704751,0.4825561,82179.0,82178.0,0.10174]
[1744388704950,0.5879561,82179.0,82178.0,0.1017]
[1744388705153,0.5879561,82179.0,82178.0,0.10174]
[1744388705653,0.5879561,82179.0,82178.0,0.05024]
[1744388705848,0.5879561,82179.0,82178.0,0.0502]
[1744388706152,0.5879561,82179.0,82167.0,0.0485]
[1744388706153,0.1217887,82157.0,82156.0,0.11324486]
[1744388706345,0.1217947,82153.0,82152.0,0.2914279]
[1744388706546,0.1217947,82153.0,82152.0,0.29156076]
[1744388706946,0.1217923,82155.0,82152.0,0.29156076]
[1744388707149,0.0526,82154.0,82153.0,0.1217947]
[1744388707350,0.0526,82154.0,82153.0,0.1712947]
[1744388707550,0.0526,82154.0,82153.0,0.1713347]
[1744388708253,0.1743932,82154.0,82153.0,0.1713347]
[1744388709250,0.1743932,82154.0,82153.0,0.1218347]
[1744388709452,0.0526,82154.0,82153.0,0.1722947]
[1744388709644,0.1743932,82154.0,82153.0,0.1722947]
[1744388709949,0.1743932,82154.0,82152.0,0.2914279]
[1744388709950,0.1217947,82153.0,82152.0,0.2914279]
[1744388710149,0.1716947,82153.0,82152.0,0.2914279]
[1744388710944,0.1217976,82151.0,82150.0,0.0608988]
[1744388711542,0.1703976,82151.0,82150.0,0.0608988]
[1744388711746,0.0511,82152.0,82151.0,0.1217976]
[1744388712752,0.1728961,82152.0,82151.0,0.2203976]
[1744388713949,0.1728961,82152.0,82151.0,0.1217976]
[1744388714258,0.1827112,82145.0,82144.0,0.121808]
[1744388714454,0.1827112,82145.0,82144.0,0.171008]
[1744388714455,0.5435112,82145.0,82144.0,0.171008]
[1744388714650,0.5435112,82145.0,82144.0,0.171048]
[1744388715152,0.6461112,82145.0,82144.0,0.222248]
[1744388716154,0.6461112,82145.0,82144.0,4e-05]
[1744388716355,0.0609111,82135.0,82124.0,0.0609188]
[1744388716560,0.4826258,82132.0,82129.0,7.29e-05]
[1744388716751,0.4826258,82132.0,82130.0,0.0512]
[1744388716952,0.5854258,82132.0,82130.0,0.0512]
[1744388717153,0.5854258,82132.0,82131.0,0.12673754]
[1744388717553,0.5854258,82132.0,82131.0,0.18003754]
[1744388718461,0.5854258,82132.0,82131.0,0.05821024]
[1744388718968,0.5854258,82132.0,82131.0,0.18003754]
[1744388721056,0.5328258,82132.0,82131.0,0.18003754]
[1744388721364,0.5328258,82132.0,82131.0,0.05821024]
[1744388721861,0.5816258,82132.0,82131.0,0.18003754]
[1744388722164,0.5816258,82132.0,82131.0,0.05821024]
[1744388722371,0.5816258,82132.0,82131.0,0.00491024]
[1744388723066,0.5816258,82132.0,82131.0,0.00487024]
[1744388723269,0.5816258,82132.0,82131.0,0.00491024]
[1744388724371,0.5816258,82132.0,82131.0,0.12673754]
[1744388725167,0.5816258,82132.0,82131.0,0.00491024]
[1744388725569,0.5816258,82132.0,82131.0,0.12673754]
[1744388726071,0.5816258,82132.0,82131.0,0.00491024]
[1744388728775,0.5816258,82132.0,82120.0,0.00902401]
[1744388728776,0.1218421,82121.0,82120.0,0.00902401]
[1744388728985,0.1827825,82114.0,82113.0,0.0609269]
[1744388729166,0.3608,82114.0,82113.0,0.1827809]
[1744388729475,0.4826525,82114.0,82113.0,0.1827809]
[1744388729867,0.4826525,82114.0,82113.0,0.2304809]
[1744388730073,0.5315525,82114.0,82113.0,0.2304809]
[1744388730479,0.5315525,82114.0,82113.0,0.0609269]
[1744388730683,0.5315525,82114.0,82113.0,0.1086269]
[1744388731074,0.5315525,82114.0,82113.0,0.1086669]
[1744388732669,0.3608,82114.0,82113.0,0.1086669]
[1744388732883,0.3608,82114.0,82113.0,0.3586669]
[1744388733775,0.3608,82114.0,82113.0,0.1086669]
[1744388734182,0.4826525,82114.0,82113.0,0.1086669]
[1744388734382,0.4826525,82114.0,82113.0,0.1086269]
[1744388734580,0.4826525,82114.0,82113.0,0.1086669]
[1744388734581,0.5331525,82114.0,82113.0,0.1086669]
[1744388734775,0.3608,82114.0,82113.0,0.1086669]
[1744388735177,0.3608,82121.0,82120.0,0.1218436]
[1744388735371,0.4826421,82121.0,82120.0,0.1218436]
[1744388735771,0.5326421,82121.0,82120.0,0.1696436]
[1744388735975,0.4108,82121.0,82120.0,0.1696436]
[1744388736270,0.5326421,82121.0,82120.0,0.2196836]
[1744388736977,0.5326421,82121.0,82120.0,0.2196436]
[1744388737174,0.5326421,82121.0,82120.0,0.2196836]
[1744388740485,0.5845421,82121.0,82120.0,0.1718836]
[1744388742386,0.1218584,82110.0,82109.0,5.4e-05]
[1744388742588,0.1218644,82106.0,82101.0,0.05099841]
[1744388742895,0.1218644,82106.0,82100.0,0.1]
[1744388743186,0.2227644,82106.0,82105.0,0.00491178]
[1744388744881,0.3097244,82106.0,82105.0,0.00491178]
[1744388745077,0.3097244,82106.0,82105.0,0.00487178]
[1744388745281,0.3097244,82106.0,82100.0,0.1]
[1744388745282,0.1218718,82101.0,82100.0,0.1]
[1744388745484,0.4826718,82101.0,82100.0,0.1]
[1744388745686,0.5808718,82101.0,82100.0,0.1]
[1744388745888,0.1218852,82092.0,82091.0,0.2914279]
[1744388746081,0.4826852,82092.0,82091.0,0.2914279]
[1744388746390,0.1218926,82087.0,82086.0,0.19220037]
[1744388746795,0.0477,82087.0,82086.0,0.19220037]
[1744388746992,0.0477,82087.0,82086.0,0.29120037]
[1744388747286,0.3608,82091.0,82090.0,0.1218881]
[1744388747693,0.5309866,82091.0,82090.0,0.2244881]
[1744388748488,0.5309866,82091.0,82090.0,0.1026]
[1744388749276,0.5811866,82091.0,82090.0,0.1026]
[1744388749780,0.5811866,82091.0,82090.0,0.0509]
[1744388750184,0.5811866,82091.0,82090.0,0.05094]
[1744388751091,0.5309866,82091.0,82090.0,0.05094]
[1744388751982,0.5834866,82091.0,82090.0,0.05094]
[1744388752389,0.5834866,82091.0,82090.0,4e-05]
[1744388754990,0.4091,82091.0,82090.0,0.1736281]
[1744388755595,0.5309866,82091.0,82090.0,0.2258281]
[1744388755892,0.4091,82091.0,82090.0,0.2258281]
[1744388756083,0.5309866,82091.0,82090.0,0.2258281]
[1744388758288,0.4091,82091.0,82090.0,0.2258281]
[1744388758493,0.5309866,82091.0,82090.0,0.2258281]
[1744388759489,0.3608,82091.0,82090.0,0.2258281]
[1744388759688,0.3608,82091.0,82090.0,0.2748281]
[1744388763596,0.4118,82091.0,82090.0,0.2748281]
[1744388764694,0.051,82091.0,82090.0,0.2748281]
[1744388764895,0.00018263,82100.0,82099.0,0.1218748]
[1744388765094,0.00018263,82100.0,82099.0,0.2199748]
[1744388766797,0.05138263,82100.0,82099.0,0.2199748]
[1744388767291,0.17325593,82100.0,82099.0,0.2199748]
[1744388767488,0.00018263,82100.0,82099.0,0.2199748]
[1744388767692,0.00018263,82100.0,82099.0,0.23131395]
[1744388767887,0.3608,82104.0,82103.0,0.1218688]
[1744388768092,0.10781082,82107.0,82106.0,0.1218644]
[1744388768496,0.10781082,82107.0,82106.0,0.2175644]
[1744388769093,0.0609359,82101.0,82100.0,0.0609366]
[1744388769295,0.0609359,82101.0,82099.0,0.07227655]
[1744388769296,0.0609344,82103.0,82102.0,0.1218703]
[1744388769596,0.0609344,82103.0,82102.0,0.1738103]
[1744388770001,0.1123344,82103.0,82102.0,4e-05]
[1744388770392,0.1123344,82103.0,82084.0,0.0609478]
[1744388770393,0.0609362,82101.0,82084.0,0.0609478]
[1744388770594,0.5436396,82087.0,82086.0,0.1828378]
[1744388770795,0.421747,82087.0,82084.0,7.29e-05]
[1744388771106,0.1219204,82071.0,82070.0,0.48610194]
[1744388771403,0.4827204,82071.0,82070.0,0.53786908]
[1744388771587,0.5819204,82071.0,82070.0,0.36405668]
[1744388771795,0.9427204,82071.0,82070.0,0.36405668]
[1744388772197,0.9427204,82071.0,82070.0,0.36409668]
[1744388772500,0.9427204,82071.0,82070.0,0.36405668]
[1744388772998,0.9427204,82071.0,82070.0,0.36409668]
[1744388773200,0.9427204,82071.0,82064.0,0.4355088]
[1744388773201,0.1219253,82065.0,82064.0,0.4355088]
[1744388773601,0.1219253,82065.0,82064.0,0.5574755]
[1744388775399,0.1219253,82065.0,82064.0,0.4355088]
[1744388775592,0.13357381,82065.0,82064.0,0.4355488]
[1744388775993,0.13357381,82065.0,82064.0,0.4355088]
[1744388776198,0.1219416,82054.0,82053.0,0.0140149]
[1744388776401,0.7216,82054.0,82044.0,0.38214774]
[1744388776597,0.482755,82045.0,82044.0,0.50410424]
[1744388776794,0.482755,82045.0,82044.0,0.1219565]
[1744388777201,0.482755,82045.0,82044.0,4e-05]
[1744388777514,0.121958,82043.0,82042.0,0.0609793]
[1744388778109,0.121958,82043.0,82042.0,0.0610193]
[1744388780911,0.3608,82045.0,82044.0,0.1219565]
[1744388781303,0.482755,82045.0,82044.0,0.1219565]
[1744388782509,0.535355,82045.0,82044.0,0.1219565]
[1744388784415,0.4134,82045.0,82044.0,0.1748565]
[1744388784613,0.4134,82045.0,82044.0,0.2259565]
[1744388785223,0.3608,82045.0,82044.0,0.2259565]
[1744388785410,0.0526,82053.0,82052.0,0.1219446]
[1744388786003,0.3608,82056.0,82053.0,0.1219431]
[1744388786209,0.10757304,82060.0,82059.0,0.1219342]
[1744388787521,0.10757304,82060.0,82059.0,0.13388075]
[1744388788407,0.10757304,82060.0,82059.0,0.1219742]
[1744388789115,0.1219327,82060.0,82059.0,0.1219742]
[1744388789316,0.1730327,82060.0,82059.0,0.1219742]
[1744388789521,0.00018274,82062.0,82061.0,0.1219312]
[1744388789817,0.4607,82086.0,82067.0,0.1219223]
[1744388790020,0.1218838,82093.0,82069.0,0.6095898]
[1744388790205,0.1218838,82093.0,82082.0,0.13250256]
[1744388790206,0.0497,82086.0,82082.0,0.13250256]
[1744388790405,0.0497,82086.0,82085.0,0.1218955]
[1744388791412,0.1715941,82086.0,82085.0,0.13123342]
[1744388791617,0.1715941,82086.0,82085.0,0.13127342]
[1744388792224,0.1715941,82086.0,82079.0,0.0609516]
[1744388792225,0.121903,82081.0,82079.0,0.060952]
[1744388792418,0.1219059,82078.0,82077.0,0.18304094]
[1744388792815,0.1219059,82078.0,82077.0,0.18308094]
[1744388793510,0.1219059,82078.0,82077.0,0.18304094]
[1744388793717,0.1219059,82078.0,82077.0,0.18308094]
[1744388794121,0.4714522,82080.0,82079.0,0.1219045]
[1744388794420,0.4105,82080.0,82079.0,0.13105583]
[1744388797026,0.0497,82080.0,82079.0,0.13105583]
[1744388797721,0.0497,82080.0,82079.0,0.18125583]
[1744388797912,0.4105,82080.0,82079.0,0.18125583]
[1744388798618,0.532403,82080.0,82079.0,0.13105583]
[1744388799224,0.585203,82080.0,82079.0,0.13109583]
[1744388799520,0.585203,82080.0,82079.0,0.13105583]
[1744388799722,0.4633,82080.0,82079.0,0.13109583]
[1744388800219,0.585203,82080.0,82079.0,0.18239583]
[1744388800932,0.4105,82080.0,82079.0,0.18239583]
[1744388802416,0.0497,82080.0,82079.0,0.18239583]
[1744388802628,0.0497,82080.0,82079.0,0.28219583]
[1744388803330,0.3608,82087.0,82086.0,0.1218941]
[1744388803725,0.3608,82087.0,82086.0,0.1703941]
[1744388804626,0.4088,82087.0,82086.0,0.2203941]
[1744388806928,0.10788246,82093.0,82092.0,0.1218852]
[1744388807142,0.10788246,82093.0,82092.0,0.1725852]
[1744388807143,0.15898246,82093.0,82092.0,0.1725852]
[1744388807426,0.15898246,82093.0,82092.0,0.2246852]
[1744388808222,0.15898246,82093.0,82092.0,0.1726252]
[1744388808422,0.69206616,82093.0,82092.0,4e-05]
[1744388808622,0.74036616,82093.0,82092.0,4e-05]
[1744388808926,0.1828493,82083.0,82082.0,0.1218977]
[1744388809127,0.3608,82083.0,82082.0,0.1218977]
[1744388809520,0.3608,82083.0,82082.0,0.1732977]
[1744388809521,0.4107,82083.0,82082.0,0.1732977]
[1744388810428,0.5325985,82083.0,82082.0,0.1732977]
[1744388810637,0.4107,82083.0,82082.0,0.1732977]
[1744388810929,0.4632,82083.0,82082.0,0.1732977]
[1744388811834,0.4632,82083.0,82082.0,0.1218977]
[1744388812224,0.4632,82083.0,82082.0,0.1219377]
[1744388813833,0.4632,82083.0,82082.0,0.1736377]
[1744388815339,0.4632,82083.0,82082.0,0.1219377]
[1744388815941,0.4632,82083.0,82082.0,0.1218977]
[1744388816138,0.4632,82083.0,82082.0,0.1219377]
[1744388816841,0.57136527,82083.0,82082.0,0.1219377]
[1744388817142,0.69326377,82083.0,82082.0,0.1219377]
[1744388820631,0.5850985,82083.0,82082.0,0.1219377]
[1744388821332,0.4632,82083.0,82082.0,0.1219377]
[1744388821535,0.5850985,82083.0,82082.0,0.1219377]
[1744388822044,0.4632,82083.0,82082.0,4e-05]
[1744388822341,0.4632,82083.0,82082.0,0.12194]
[1744388822531,0.5850985,82083.0,82082.0,0.1219]
[1744388822942,0.4632,82083.0,82082.0,0.1219]
[1744388823135,0.4632,82083.0,82082.0,0.1716]
[1744388823333,0.4632,82083.0,82082.0,0.17164]
[1744388823740,0.4107,82083.0,82082.0,0.17164]
[1744388823938,0.4107,82083.0,82082.0,0.22404]
[1744388824134,0.4107,82083.0,82082.0,0.27204]
[1744388824542,0.46996742,82083.0,82082.0,0.27204]
[1744388825339,0.42006742,82083.0,82082.0,0.27204]
[1744388825540,0.05926742,82083.0,82082.0,1.04814]
[1744388825734,0.05926742,82083.0,82082.0,1.29814]
[1744388825934,0.00518274,82094.0,82093.0,0.1218837]
[1744388826140,0.3608,82112.0,82101.0,0.1218718]
[1744388826345,0.0528,82109.0,82101.0,0.13337979]
[1744388826537,0.0528,82109.0,82101.0,0.23507979]
[1744388826744,0.0528,82109.0,82101.0,0.25141564]
[1744388827951,0.0528,82109.0,82108.0,0.1218614]
[1744388828249,0.0528,82109.0,82108.0,0.13819725]
[1744388828548,0.0528,82109.0,82108.0,0.23766368]
[1744388828748,0.0528,82109.0,82108.0,0.2213614]
[1744388829944,0.0528,82109.0,82108.0,0.1218614]
[1744388830252,0.1028,82109.0,82108.0,0.1218614]
[1744388830453,0.0609322,82107.0,82104.0,0.08688]
[1744388830753,0.1029,82106.0,82105.0,0.1218659]
[1744388831143,0.0529,82106.0,82105.0,0.2203659]
[1744388831637,0.0529,82106.0,82105.0,0.2204059]
[1744388831841,0.1029,82106.0,82105.0,0.2204059]
[1744388832851,0.1029,82106.0,82105.0,0.23666007]
[1744388833653,0.1029,82106.0,82105.0,0.2204059]
[1744388834047,0.1029,82106.0,82105.0,0.1712059]
[1744388834355,0.1029,82106.0,82105.0,0.1219059]
[1744388834549,0.2247644,82106.0,82105.0,4e-05]
[1744388834942,0.2247644,82106.0,82105.0,0.1218659]
[1744388834943,0.2856981,82106.0,82105.0,0.1218659]
[1744388835146,0.2856981,82106.0,82105.0,0.1219059]
[1744388836650,0.3379981,82106.0,82105.0,0.1219059]
[1744388837043,0.0529,82106.0,82105.0,0.1219059]
[1744388837247,0.0529,82106.0,82105.0,0.1698059]
[1744388837448,0.0529,82106.0,82105.0,0.2195059]
[1744388837842,0.0529,82106.0,82105.0,0.1698059]
[1744388838646,0.0529,82106.0,82105.0,0.2195059]
[1744388843250,0.14409261,82108.0,82107.0,0.1218629]
[1744388843457,0.14409261,82108.0,82107.0,0.5371629]
[1744388843752,0.14409261,82108.0,82107.0,0.6339629]
[1744388843959,0.00018274,82110.0,82109.0,0.1218599]
[1744388844149,0.00018274,82110.0,82109.0,0.2186599]
[1744388845255,0.10806666,82114.0,82113.0,0.121854]
[1744388845459,0.08769406,82123.0,82122.0,0.1218406]
[1744388845758,0.04636956,82123.0,82122.0,0.2086406]
[1744388846156,0.0506,82135.0,82126.0,0.1218347]
[1744388846453,0.00018274,82131.0,82126.0,0.5371347]
[1744388846655,0.00018274,82131.0,82126.0,0.6379347]
[1744388846860,0.1218306,82129.0,82126.0,0.6379347]
[1744388847052,0.4826332,82127.0,82126.0,0.5371747]
[1744388847453,0.4638,82127.0,82126.0,0.5371347]
[1744388847659,0.4638,82127.0,82126.0,0.5371747]
[1744388848449,0.5856332,82127.0,82126.0,0.41534]
[1744388849045,0.5856332,82127.0,82126.0,0.5371347]
[1744388849252,0.5856332,82127.0,82126.0,0.5371747]
[1744388849753,0.5468332,82127.0,82126.0,0.1218747]
[1744388853851,0.425,82127.0,82126.0,0.1218747]
[1744388856154,0.425,82127.0,82126.0,0.2217747]
[1744388856756,0.425,82127.0,82126.0,0.1731747]
[1744388857763,0.3726,82127.0,82126.0,0.1731747]
[1744388858453,0.3726,82127.0,82126.0,0.1731347]
[1744388858660,0.3726,82127.0,82126.0,0.1218747]
[1744388858860,0.3726,82127.0,82126.0,0.1218347]
[1744388859063,0.3726,82127.0,82126.0,0.1218747]
[1744388859266,0.3726,82127.0,82126.0,0.2210747]
[1744388863575,0.322,82127.0,82126.0,0.2210747]
[1744388864174,0.322,82127.0,82126.0,0.1717747]
[1744388864373,0.322,82127.0,82126.0,0.1717347]
[1744388864673,0.322,82127.0,82126.0,0.2235747]
[1744388866372,0.00018274,82131.0,82128.0,0.0609158]
[1744388866564,0.3608,82143.0,82134.0,0.0609114]
[1744388866770,0.3658,82146.0,82145.0,0.1218065]
[1744388866968,0.3658,82146.0,82145.0,0.1727065]
[1744388867170,0.3658,82146.0,82145.0,0.2247065]
[1744388868986,0.3658,82146.0,82145.0,0.6400065]
[1744388871389,0.3658,82146.0,82145.0,0.65207325]
[1744388871788,0.005,82146.0,82145.0,0.65207325]
[1744388872575,1e-07,82146.0,82145.0,0.65207325]
[1744388874083,0.00018263,82154.0,82153.0,0.1217947]
[1744388874287,0.00018263,82154.0,82153.0,0.2085147]
[1744388874473,0.00018263,82154.0,82153.0,0.3107147]
[1744388874675,0.0512,82162.0,82161.0,0.1217828]
[1744388875088,0.0512,82162.0,82161.0,0.2239828]
[1744388875889,0.21612248,82163.0,82162.0,0.1217813]
[1744388876087,0.21612248,82163.0,82162.0,0.2209813]
[1744388877794,0.0507,82167.0,82166.0,0.1217754]
[1744388878194,0.0507,82167.0,82166.0,0.2209754]
[1744388880096,0.0507,82167.0,82166.0,0.23258172]
[1744388880801,0.0507,82167.0,82166.0,0.24175729]
[1744388881003,0.04948263,82170.0,82166.0,0.24175729]
[1744388881004,0.04948263,82170.0,82169.0,0.1217709]
[1744388881185,0.01202877,82188.0,82181.0,0.0608764]
[1744388881387,0.051,82191.0,82190.0,0.1217398]
[1744388881607,0.28818522,82197.0,82196.0,0.1217309]
[1744388882286,0.005,82198.0,82196.0,0.1703309]
[1744388882490,0.005,82198.0,82197.0,0.1217295]
[1744388882994,0.005,82198.0,82197.0,0.13337529]
[1744388884194,0.0535,82204.0,82199.0,0.1217265]
[1744388884394,0.1025,82204.0,82199.0,0.1217265]
[1744388884593,0.1025,82204.0,82199.0,0.1751265]
[1744388886899,0.00011703,82205.0,82204.0,0.1217191]
[1744388887099,0.39625468,82213.0,82208.0,0.0608558]
[1744388887306,0.39625468,82213.0,82212.0,0.1217072]
[1744388887892,0.39625468,82213.0,82212.0,0.1711072]
[1744388888097,0.39625468,82213.0,82212.0,0.5319072]
[1744388888296,0.101,82217.0,82216.0,0.1217013]
[1744388892700,0.101,82217.0,82216.0,0.1722013]
[1744388894096,0.101,82217.0,82216.0,0.1217013]
[1744388894504,0.101,82217.0,82216.0,0.1217413]
[1744388895398,0.101,82217.0,82216.0,0.1742413]
[1744388898210,0.101,82217.0,82216.0,0.1217413]
[1744388898612,0.2226998,82217.0,82216.0,4e-05]
[1744388899107,0.1217072,82212.0,82211.0,0.5978615]
[1744388899612,0.6356072,82212.0,82211.0,0.1825615]
[1744388901005,0.1217117,82209.0,82208.0,0.12194821]
[1744388901512,0.2235117,82209.0,82208.0,0.12189421]
[1744388901706,0.2235117,82209.0,82208.0,0.12193421]
[1744388902117,0.1018,82209.0,82208.0,0.12193421]
[1744388902908,0.2235117,82209.0,82208.0,0.12193421]
[1744388903603,0.1018,82209.0,82208.0,0.12193421]
[1744388904515,0.2235117,82209.0,82208.0,0.12193421]
[1744388904822,0.1018,82209.0,82208.0,0.12193421]
[1744388905005,0.2235117,82209.0,82208.0,0.12193421]
[1744388906316,0.1018,82209.0,82208.0,0.12193421]
[1744388906520,0.1018,82209.0,82208.0,0.17263421]
[1744388906920,0.2235117,82209.0,82208.0,0.17263421]
[1744388907325,0.2235117,82209.0,82208.0,0.12193421]
[1744388908024,0.2235117,82209.0,82208.0,0.17259421]
[1744388908321,0.2235117,82209.0,82208.0,0.17263421]
[1744388911123,0.1018,82209.0,82208.0,0.17263421]
[1744388912325,0.2235117,82209.0,82208.0,0.12193421]
[1744388913023,0.2235117,82209.0,82208.0,0.12189421]
[1744388913225,0.2235117,82209.0,82208.0,0.17233421]
[1744388915028,0.0493,82209.0,82208.0,0.17233421]
[1744388915233,0.0493,82209.0,82208.0,0.22293421]
[1744388917428,0.0548,82211.0,82210.0,0.1217102]
[1744388917626,0.005,82224.0,82218.0,0.1216984]
[1744388917933,0.1086,82223.0,82218.0,0.1216984]
[1744388918428,0.1086,82223.0,82218.0,0.2229984]
[1744388918619,0.2302918,82223.0,82218.0,0.2229984]
[1744388919027,0.1086,82223.0,82218.0,0.2229984]
[1744388920634,0.005,82224.0,82223.0,0.121691]
[1744388920824,0.005,82224.0,82223.0,0.275191]
[1744388921520,0.005,82224.0,82223.0,0.275231]
[1744388922427,0.005,82224.0,82223.0,0.636031]
[1744388922627,0.25577553,82250.0,82239.0,0.1216673]
[1744388922830,0.060827,82248.0,82239.0,0.1216673]
[1744388923028,0.1216591,82245.0,82239.0,0.1216673]
[1744388923230,0.0608277,82247.0,82239.0,0.2744673]
[1744388923427,0.104,82244.0,82239.0,0.2744673]
[1744388925834,0.104,82244.0,82243.0,0.1216614]
[1744388926233,0.104,82244.0,82243.0,0.2246614]
[1744388926533,0.0509,82244.0,82243.0,0.2246614]
[1744388927635,0.3608,82248.0,82247.0,0.1216555]
[1744388928024,0.3608,82271.0,82252.0,0.0608236]
[1744388928225,0.0516,82254.0,82253.0,0.1732466]
[1744388928531,0.0499,82258.0,82257.0,0.1216407]
[1744388928736,0.1015,82258.0,82257.0,0.4824407]
[1744388929522,0.2231392,82258.0,82257.0,0.4824407]
[1744388930331,0.1015,82258.0,82257.0,0.4824407]
[1744388930637,0.1015,82258.0,82257.0,0.4824807]
[1744388930844,0.0608112,82270.0,82269.0,0.1216229]
[1744388932234,0.1100112,82270.0,82269.0,0.1216229]
[1744388933933,0.2158112,82270.0,82269.0,0.1216229]
[1744388935433,0.2158112,82270.0,82269.0,0.1761229]
[1744388937935,0.1216318,82263.0,82262.0,0.1824476]
[1744388939336,0.1216318,82263.0,82262.0,0.1824876]
[1744388940340,0.1708259,82270.0,82269.0,0.1216229]
[1744388940543,0.0608122,82270.0,82269.0,0.4824229]
[1744388941126,0.0608122,82270.0,82269.0,0.5337229]
[1744388941334,0.1148122,82270.0,82269.0,0.5337229]
[1744388941739,0.1660122,82270.0,82269.0,0.5871229]
[1744388943040,0.1216318,82263.0,82262.0,4e-05]
[1744388943246,0.4824318,82263.0,82262.0,4e-05]
[1744388943555,0.5865318,82263.0,82262.0,4e-05]
[1744388943747,0.1216377,82259.0,82258.0,0.1216388]
[1744388943945,0.1216351,82261.0,82260.0,0.1824528]
[1744388944147,0.174133,82263.0,82262.0,0.1216333]
[1744388944347,0.1741318,82263.0,82262.0,0.1216333]
[1744388944647,0.1824413,82267.0,82266.0,0.1216274]
[1744388944838,0.1216244,82268.0,82267.0,0.1216259]
[1744388945039,0.173217,82274.0,82273.0,0.121617]
[1744388945537,0.121617,82274.0,82273.0,0.121617]
[1744388945944,0.121617,82274.0,82273.0,0.176017]
[1744388946562,0.0607984,82287.0,82286.0,0.1215978]
[1744388947857,0.1823987,82287.0,82286.0,0.1215978]
[1744388948255,0.1823987,82287.0,82286.0,0.1759978]
[1744388948659,0.1823987,82287.0,82286.0,0.1215978]
[1744388949361,0.1216007,82285.0,82284.0,0.1215995]
[1744388950065,0.2248007,82285.0,82284.0,0.1215995]
[1744388953063,0.2248007,82285.0,82284.0,0.1714995]
[1744388954957,0.1216007,82285.0,82284.0,0.1714995]
[1744388956259,0.1216007,82285.0,82284.0,0.2257995]
[1744388956460,0.1823852,82294.0,82293.0,0.0607937]
[1744388957169,0.1823852,82294.0,82293.0,0.1113937]